[Event "Early-Titled-Tuesday-Blitz-May-07-2024"]
[Site "Chess.com"]
[Date "2024.05.07"]
[Round "4"]
[White "Lily_Schirmbeck"]
[Black "Navyblue1"]
[Result "1/2-1/2"]
[WhiteElo "1661"]
[BlackElo "2239"]
[TimeControl "180+1"]
[EndTime "8:41:46 PDT"]
[Termination "Game drawn by agreement"]

1. e3 {[%clk 0:02:57.7]} 1... Nf6 {[%clk 0:02:48.6]} 2. Nf3 {[%clk 0:02:56.3]}
2... g6 {[%clk 0:02:47.4]} 3. c4 {[%clk 0:02:56.2]} 3... Bg7 {[%clk 0:02:45.8]}
4. Nc3 {[%clk 0:02:56.6]} 4... O-O {[%clk 0:02:43.9]} 5. d4 {[%clk 0:02:56.4]}
5... c6 {[%clk 0:02:30.5]} 6. Bd3 {[%clk 0:02:54.6]} 6... d5 {[%clk 0:02:29.9]}
7. cxd5 {[%clk 0:02:50.7]} 7... cxd5 {[%clk 0:02:29.3]} 8. O-O {[%clk
0:02:48.9]} 8... Nc6 {[%clk 0:02:26]} 9. Qe2 {[%clk 0:02:35.4]} 9... Bg4 {[%clk
0:02:04]} 10. h3 {[%clk 0:02:32]} 10... Bxf3 {[%clk 0:02:03.8]} 11. Qxf3 {[%clk
0:02:32.9]} 11... e5 {[%clk 0:02:03.5]} 12. dxe5 {[%clk 0:02:29]} 12... Nxe5
{[%clk 0:02:04.4]} 13. Qe2 {[%clk 0:02:29]} 13... Re8 {[%clk 0:01:39.1]} 14. b3
{[%clk 0:02:20.9]} 14... Nxd3 {[%clk 0:01:30.4]} 15. Qxd3 {[%clk 0:02:19.4]}
15... Ne4 {[%clk 0:01:28.3]} 16. Bb2 {[%clk 0:02:19.1]} 16... Rc8 {[%clk
0:01:23.2]} 17. Rac1 {[%clk 0:02:17.6]} 17... Nxc3 {[%clk 0:00:54.5]} 18. Bxc3
{[%clk 0:02:16]} 18... Bxc3 {[%clk 0:00:54.1]} 19. Rxc3 {[%clk 0:02:16.4]} 19...
Qa5 {[%clk 0:00:49.8]} 20. Rxc8 {[%clk 0:02:00.2]} 20... Rxc8 {[%clk 0:00:48]}
21. Rd1 {[%clk 0:01:59.1]} 21... Qxa2 {[%clk 0:00:42.3]} 22. Qxd5 {[%clk
0:01:58.2]} 22... Qc2 {[%clk 0:00:41.4]} 23. h4 {[%clk 0:01:52.7]} 23... Qc6
{[%clk 0:00:35.2]} 24. Qd4 {[%clk 0:01:42.2]} 24... a6 {[%clk 0:00:29.9]} 25. b4
{[%clk 0:01:35.8]} 25... Qe6 {[%clk 0:00:24]} 26. h5 {[%clk 0:01:20.8]} 26...
gxh5 {[%clk 0:00:20.6]} 27. Qd7 {[%clk 0:01:16.7]} 27... Qxd7 {[%clk 0:00:19.9]}
28. Rxd7 {[%clk 0:01:16.4]} 28... Rc1+ {[%clk 0:00:20]} 29. Kh2 {[%clk
0:01:15.6]} 29... b5 {[%clk 0:00:20]} 30. Ra7 {[%clk 0:01:14.2]} 30... Rb1
{[%clk 0:00:19.8]} 31. Rxa6 {[%clk 0:01:14.1]} 31... Rxb4 {[%clk 0:00:19.8]} 32.
Rb6 {[%clk 0:01:13.1]} 32... Rb2 {[%clk 0:00:19.6]} 33. Kg3 {[%clk 0:01:12.9]}
33... Kg7 {[%clk 0:00:19.8]} 34. Kf3 {[%clk 0:01:13]} 34... b4 {[%clk
0:00:19.6]} 35. e4 {[%clk 0:01:10.2]} 35... b3 {[%clk 0:00:19.6]} 36. Ke3 {[%clk
0:01:09.9]} 36... Rb1 {[%clk 0:00:19.6]} 37. Rb5 {[%clk 0:01:08]} 37... b2
{[%clk 0:00:19.3]} 38. Ke2 {[%clk 0:01:05.6]} 38... h6 {[%clk 0:00:18.2]} 39. g3
{[%clk 0:01:05]} 39... Kf6 {[%clk 0:00:17.5]} 40. f4 {[%clk 0:01:02.1]} 40...
Kg6 {[%clk 0:00:16.6]} 41. Kf2 {[%clk 0:01:00.7]} 41... f6 {[%clk 0:00:16.6]}
42. Ke2 {[%clk 0:01:00.3]} 42... Kf7 {[%clk 0:00:16.6]} 1/2-1/2

[Event "Early-Titled-Tuesday-Blitz-May-07-2024"]
[Site "Chess.com"]
[Date "2024.05.07"]
[Round "4"]
[White "InitiatingASC"]
[Black "Artyom_ChessMate"]
[Result "1-0"]
[WhiteElo "2401"]
[BlackElo "2551"]
[TimeControl "180+1"]
[EndTime "8:41:48 PDT"]
[Termination "InitiatingASC won by resignation"]

1. d4 {[%clk 0:03:00.9]} 1... d5 {[%clk 0:02:54.8]} 2. c4 {[%clk 0:03:00.6]}
2... e6 {[%clk 0:02:54.5]} 3. Nc3 {[%clk 0:02:59.8]} 3... Nf6 {[%clk 0:02:55]}
4. cxd5 {[%clk 0:02:58.5]} 4... exd5 {[%clk 0:02:55.9]} 5. Bg5 {[%clk
0:02:55.1]} 5... c6 {[%clk 0:02:56.8]} 6. e3 {[%clk 0:02:54.7]} 6... Qb6 {[%clk
0:02:56.5]} 7. Bxf6 {[%clk 0:02:51.5]} 7... Qxb2 {[%clk 0:02:56.1]} 8. Qc1
{[%clk 0:02:40.5]} 8... Qxc1+ {[%clk 0:02:52.1]} 9. Rxc1 {[%clk 0:02:40]} 9...
gxf6 {[%clk 0:02:53]} 10. Nxd5 {[%clk 0:02:37.6]} 10... Na6 {[%clk 0:02:07.4]}
11. Bxa6 {[%clk 0:02:32.8]} 11... Ba3 {[%clk 0:01:58.3]} 12. Rc3 {[%clk
0:01:44.7]} 12... cxd5 {[%clk 0:01:53.6]} 13. Rxa3 {[%clk 0:01:43.8]} 13... bxa6
{[%clk 0:01:53.6]} 14. Ne2 {[%clk 0:01:40.6]} 14... Rb8 {[%clk 0:01:49.9]} 15.
O-O {[%clk 0:01:40.3]} 15... Rg8 {[%clk 0:01:45.2]} 16. Rc1 {[%clk 0:01:34.7]}
16... Be6 {[%clk 0:01:12.9]} 17. Rxa6 {[%clk 0:01:29.5]} 17... Rb7 {[%clk
0:01:09.6]} 18. Nf4 {[%clk 0:01:28.4]} 18... Ke7 {[%clk 0:01:09.2]} 19. h4
{[%clk 0:01:23]} 19... Rd8 {[%clk 0:01:02.2]} 20. Rcc6 {[%clk 0:01:15.9]} 20...
Bf5 {[%clk 0:00:52.8]} 21. Rxf6 {[%clk 0:01:06.5]} 21... Be4 {[%clk 0:00:39.5]}
22. Rfc6 {[%clk 0:01:01.5]} 22... Rg8 {[%clk 0:00:36.7]} 23. Ra3 {[%clk
0:00:47.8]} 23... Kd7 {[%clk 0:00:28.1]} 24. Rca6 {[%clk 0:00:46]} 24... Rb1+
{[%clk 0:00:27.3]} 25. Kh2 {[%clk 0:00:42.4]} 25... Rb2 {[%clk 0:00:27.2]} 26.
Rxa7+ {[%clk 0:00:40.2]} 26... Kc6 {[%clk 0:00:25.6]} 27. R3a6+ {[%clk
0:00:25.8]} 27... Kb5 {[%clk 0:00:25.4]} 28. Rb7+ {[%clk 0:00:25.8]} 28... Kxa6
{[%clk 0:00:25.5]} 29. Rxb2 {[%clk 0:00:26.6]} 29... Rc8 {[%clk 0:00:21.7]} 30.
f3 {[%clk 0:00:23.3]} 1-0

[Event "Early-Titled-Tuesday-Blitz-May-07-2024"]
[Site "Chess.com"]
[Date "2024.05.07"]
[Round "4"]
[White "LamaChampetre"]
[Black "noblerone"]
[Result "0-1"]
[WhiteElo "2229"]
[BlackElo "2509"]
[TimeControl "180+1"]
[EndTime "8:41:51 PDT"]
[Termination "noblerone won by resignation"]

1. d4 {[%clk 0:02:56.3]} 1... d5 {[%clk 0:02:58.6]} 2. c4 {[%clk 0:02:52.2]}
2... c6 {[%clk 0:02:59]} 3. Nf3 {[%clk 0:02:51.8]} 3... Nf6 {[%clk 0:02:59.3]}
4. e3 {[%clk 0:02:52.1]} 4... Bg4 {[%clk 0:02:58.9]} 5. Qb3 {[%clk 0:02:47.4]}
5... Qb6 {[%clk 0:02:55.3]} 6. Nc3 {[%clk 0:02:45.8]} 6... e6 {[%clk 0:02:55.2]}
7. Bd2 {[%clk 0:02:44.3]} 7... Nbd7 {[%clk 0:02:50.9]} 8. h3 {[%clk 0:02:41.3]}
8... Bh5 {[%clk 0:02:48.3]} 9. g4 {[%clk 0:02:34.4]} 9... Bg6 {[%clk 0:02:48.4]}
10. Nh4 {[%clk 0:02:34.6]} 10... Qxb3 {[%clk 0:02:45.1]} 11. axb3 {[%clk
0:02:31]} 11... Bc2 {[%clk 0:02:45.7]} 12. cxd5 {[%clk 0:02:04.2]} 12... exd5
{[%clk 0:02:45.5]} 13. Bg2 {[%clk 0:01:33.9]} 13... Bxb3 {[%clk 0:02:39.8]} 14.
Nf5 {[%clk 0:01:31.3]} 14... g6 {[%clk 0:02:27.4]} 15. Ng3 {[%clk 0:01:28.4]}
15... Bc4 {[%clk 0:02:26.3]} 16. e4 {[%clk 0:01:20.5]} 16... dxe4 {[%clk
0:02:06.1]} 17. Ncxe4 {[%clk 0:01:19.8]} 17... Nxe4 {[%clk 0:02:06.1]} 18. Nxe4
{[%clk 0:01:18.3]} 18... Be7 {[%clk 0:01:57.6]} 19. O-O-O {[%clk 0:00:52.5]}
19... O-O {[%clk 0:01:41.6]} 20. Rhe1 {[%clk 0:00:48]} 20... Rfe8 {[%clk
0:01:38.2]} 21. g5 {[%clk 0:00:37.6]} 21... Bd5 {[%clk 0:01:34.8]} 22. h4 {[%clk
0:00:30]} 22... a5 {[%clk 0:01:29.8]} 23. Bh3 {[%clk 0:00:24.8]} 23... Nb6
{[%clk 0:01:28.8]} 24. Bf4 {[%clk 0:00:14.5]} 24... a4 {[%clk 0:01:19.1]} 25.
Be5 {[%clk 0:00:13.7]} 25... Nc4 {[%clk 0:01:13.7]} 26. Nf6+ {[%clk 0:00:07.1]}
26... Bxf6 {[%clk 0:01:11.4]} 27. Bxf6 {[%clk 0:00:07.6]} 27... a3 {[%clk
0:00:53.6]} 28. bxa3 {[%clk 0:00:07.5]} 28... Nxa3 {[%clk 0:00:53.7]} 29. Rxe8+
{[%clk 0:00:06.5]} 29... Rxe8 {[%clk 0:00:53.3]} 30. Kd2 {[%clk 0:00:06.7]}
30... Nc4+ {[%clk 0:00:52.5]} 31. Kd3 {[%clk 0:00:05.7]} 31... Nb2+ {[%clk
0:00:52.5]} 32. Kd2 {[%clk 0:00:05.9]} 32... Nxd1 {[%clk 0:00:52.9]} 33. Kxd1
{[%clk 0:00:06.8]} 33... b5 {[%clk 0:00:52.7]} 34. Kd2 {[%clk 0:00:06.9]} 34...
b4 {[%clk 0:00:52.4]} 35. f4 {[%clk 0:00:06.7]} 35... b3 {[%clk 0:00:51.9]} 36.
Kc3 {[%clk 0:00:06.3]} 36... Re3+ {[%clk 0:00:52]} 0-1

[Event "Early-Titled-Tuesday-Blitz-May-07-2024"]
[Site "Chess.com"]
[Date "2024.05.07"]
[Round "4"]
[White "RusPakhom"]
[Black "sewlins"]
[Result "1-0"]
[WhiteElo "2389"]
[BlackElo "2206"]
[TimeControl "180+1"]
[EndTime "8:41:51 PDT"]
[Termination "RusPakhom won on time"]

1. d4 {[%clk 0:02:56.9]} 1... e6 {[%clk 0:02:59.7]} 2. g3 {[%clk 0:02:54.7]}
2... c5 {[%clk 0:02:59.2]} 3. Nf3 {[%clk 0:02:48.6]} 3... cxd4 {[%clk
0:02:56.5]} 4. Nxd4 {[%clk 0:02:48.4]} 4... d5 {[%clk 0:02:56.9]} 5. Bg2 {[%clk
0:02:47.4]} 5... e5 {[%clk 0:02:57.1]} 6. Nb3 {[%clk 0:02:45.4]} 6... Nf6 {[%clk
0:02:57.7]} 7. O-O {[%clk 0:02:44.6]} 7... Nc6 {[%clk 0:02:53.9]} 8. Bg5 {[%clk
0:02:42.4]} 8... d4 {[%clk 0:02:46.6]} 9. c3 {[%clk 0:02:39.6]} 9... Be7 {[%clk
0:02:39.9]} 10. Bxc6+ {[%clk 0:02:30.3]} 10... bxc6 {[%clk 0:02:40.8]} 11. cxd4
{[%clk 0:02:30.7]} 11... exd4 {[%clk 0:02:36.5]} 12. Qxd4 {[%clk 0:02:28.7]}
12... Qc7 {[%clk 0:02:06.5]} 13. Bf4 {[%clk 0:02:14.1]} 13... Qb7 {[%clk
0:01:45.8]} 14. Nc3 {[%clk 0:02:02.1]} 14... O-O {[%clk 0:01:37.2]} 15. Rfd1
{[%clk 0:01:50.9]} 15... Bg4 {[%clk 0:01:34.6]} 16. f3 {[%clk 0:01:40.8]} 16...
Bh5 {[%clk 0:01:21.7]} 17. Rac1 {[%clk 0:01:31.1]} 17... Rfd8 {[%clk 0:01:18.3]}
18. Qe5 {[%clk 0:01:25.8]} 18... Bg6 {[%clk 0:01:14.6]} 19. e4 {[%clk
0:01:18.8]} 19... a5 {[%clk 0:01:07.4]} 20. Na4 {[%clk 0:01:13]} 20... Re8
{[%clk 0:00:55.4]} 21. Qc3 {[%clk 0:01:05.3]} 21... Qa7+ {[%clk 0:00:39.6]} 22.
Be3 {[%clk 0:01:03.5]} 22... Qb8 {[%clk 0:00:35.5]} 23. Qxc6 {[%clk 0:00:52.8]}
23... h5 {[%clk 0:00:27.4]} 24. Kg2 {[%clk 0:00:49.4]} 24... h4 {[%clk
0:00:27.2]} 25. Bf4 {[%clk 0:00:45.7]} 25... Qb4 {[%clk 0:00:27.2]} 26. Rc4
{[%clk 0:00:40.7]} 1-0

[Event "Early-Titled-Tuesday-Blitz-May-07-2024"]
[Site "Chess.com"]
[Date "2024.05.07"]
[Round "4"]
[White "OppieZippy"]
[Black "Aklan10n"]
[Result "0-1"]
[WhiteElo "2369"]
[BlackElo "2216"]
[TimeControl "180+1"]
[EndTime "8:41:52 PDT"]
[Termination "Aklan10n won by checkmate"]

1. Nf3 {[%clk 0:03:00.9]} 1... c6 {[%clk 0:01:38.6]} 2. g3 {[%clk 0:02:59.6]}
2... d5 {[%clk 0:01:38.8]} 3. Bg2 {[%clk 0:03:00.2]} 3... Nf6 {[%clk 0:01:38.6]}
4. O-O {[%clk 0:03:00.4]} 4... Bd7 {[%clk 0:01:39.2]} 5. b3 {[%clk 0:02:58.9]}
5... Qc8 {[%clk 0:01:40.1]} 6. Bb2 {[%clk 0:02:55.4]} 6... Bh3 {[%clk
0:01:40.7]} 7. c4 {[%clk 0:02:55.9]} 7... Bxg2 {[%clk 0:01:40.6]} 8. Kxg2 {[%clk
0:02:56.1]} 8... Nbd7 {[%clk 0:01:40.4]} 9. d3 {[%clk 0:02:56.3]} 9... Qb8
{[%clk 0:01:40.3]} 10. Nbd2 {[%clk 0:02:54]} 10... a5 {[%clk 0:01:39.7]} 11. Rc1
{[%clk 0:02:53.8]} 11... e6 {[%clk 0:01:39.5]} 12. e4 {[%clk 0:02:52.6]} 12...
Be7 {[%clk 0:01:40]} 13. Re1 {[%clk 0:02:52.1]} 13... dxe4 {[%clk 0:01:39.3]}
14. dxe4 {[%clk 0:02:51.7]} 14... a4 {[%clk 0:01:39.6]} 15. e5 {[%clk
0:02:51.6]} 15... Ng8 {[%clk 0:01:39.8]} 16. Ne4 {[%clk 0:02:51.7]} 16... axb3
{[%clk 0:01:39.4]} 17. axb3 {[%clk 0:02:52.6]} 17... Nc5 {[%clk 0:01:39.1]} 18.
Nd6+ {[%clk 0:02:51.4]} 18... Bxd6 {[%clk 0:01:39.3]} 19. exd6 {[%clk
0:02:52.3]} 19... Nf6 {[%clk 0:01:39]} 20. Bxf6 {[%clk 0:02:46.5]} 20... gxf6
{[%clk 0:01:39]} 21. Qd4 {[%clk 0:02:47.2]} 21... Nd7 {[%clk 0:01:39.2]} 22. c5
{[%clk 0:02:41.9]} 22... O-O {[%clk 0:01:29]} 23. Re4 {[%clk 0:02:41.8]} 23...
f5 {[%clk 0:01:25.6]} 24. Rh4 {[%clk 0:02:41.7]} 24... Qd8 {[%clk 0:01:24.6]}
25. b4 {[%clk 0:02:31.5]} 25... Qf6 {[%clk 0:01:11.9]} 26. Qd3 {[%clk
0:02:26.3]} 26... e5 {[%clk 0:00:55.2]} 27. Qc3 {[%clk 0:02:25.9]} 27... Rfe8
{[%clk 0:00:49.2]} 28. Re1 {[%clk 0:02:25.3]} 28... e4 {[%clk 0:00:49.6]} 29.
Nd4 {[%clk 0:02:14.6]} 29... Ra2 {[%clk 0:00:45.4]} 30. Rf4 {[%clk 0:02:14.3]}
30... Re5 {[%clk 0:00:45.3]} 31. Qb3 {[%clk 0:02:08.5]} 31... Rd2 {[%clk
0:00:42.4]} 32. Ne2 {[%clk 0:02:04.1]} 32... Red5 {[%clk 0:00:36.3]} 33. Kg1
{[%clk 0:01:57.9]} 33... Ne5 {[%clk 0:00:36.1]} 34. Kg2 {[%clk 0:01:33.4]} 34...
Nd3 {[%clk 0:00:28.5]} 35. Ra1 {[%clk 0:01:16.2]} 35... Rxe2 {[%clk 0:00:27.4]}
36. Ra8+ {[%clk 0:01:15.6]} 36... Kg7 {[%clk 0:00:27.4]} 37. Rh4 {[%clk
0:01:16]} 37... Rxf2+ {[%clk 0:00:24.9]} 38. Kh3 {[%clk 0:01:16.4]} 38... f4
{[%clk 0:00:18.6]} 39. Rg4+ {[%clk 0:01:16]} 39... Rg5 {[%clk 0:00:18.5]} 40.
Rxg5+ {[%clk 0:01:07.4]} 40... Qxg5 {[%clk 0:00:19.4]} 41. Qc3+ {[%clk
0:01:08.2]} 41... Kh6 {[%clk 0:00:18.7]} 42. g4 {[%clk 0:01:02.9]} 42... Rf3+
{[%clk 0:00:15.7]} 43. Kg2 {[%clk 0:01:03.4]} 43... Qxg4+ {[%clk 0:00:16.3]} 44.
Kh1 {[%clk 0:01:04]} 44... Nf2# {[%clk 0:00:15.1]} 0-1

[Event "Early-Titled-Tuesday-Blitz-May-07-2024"]
[Site "Chess.com"]
[Date "2024.05.07"]
[Round "4"]
[White "Kostukov_Alex"]
[Black "miaou33"]
[Result "0-1"]
[WhiteElo "2368"]
[BlackElo "2546"]
[TimeControl "180+1"]
[EndTime "8:41:53 PDT"]
[Termination "miaou33 won by resignation"]

1. g3 {[%clk 0:03:00.9]} 1... h5 {[%clk 0:02:58.3]} 2. Nf3 {[%clk 0:02:59.9]}
2... Nc6 {[%clk 0:02:58.2]} 3. d4 {[%clk 0:02:58.9]} 3... d6 {[%clk 0:02:53.5]}
4. d5 {[%clk 0:02:57.2]} 4... Ne5 {[%clk 0:02:53.3]} 5. Nxe5 {[%clk 0:02:57.2]}
5... dxe5 {[%clk 0:02:54.2]} 6. h4 {[%clk 0:02:48.1]} 6... e6 {[%clk 0:02:54.3]}
7. Bg2 {[%clk 0:02:41.9]} 7... exd5 {[%clk 0:02:53.8]} 8. Qxd5 {[%clk
0:02:39.5]} 8... Qxd5 {[%clk 0:02:52.6]} 9. Bxd5 {[%clk 0:02:39.3]} 9... Nf6
{[%clk 0:02:52.1]} 10. Bg2 {[%clk 0:02:38.7]} 10... Bc5 {[%clk 0:02:49.3]} 11.
c4 {[%clk 0:02:36.7]} 11... c6 {[%clk 0:02:46]} 12. Nc3 {[%clk 0:02:36.6]} 12...
Be6 {[%clk 0:02:45.2]} 13. b3 {[%clk 0:02:35.9]} 13... O-O-O {[%clk 0:02:15.2]}
14. Bb2 {[%clk 0:02:31.4]} 14... Ng4 {[%clk 0:02:08.2]} 15. Kf1 {[%clk
0:02:20.2]} 15... Bxf2 {[%clk 0:01:45.4]} 16. Ne4 {[%clk 0:02:06.4]} 16... Bd4
{[%clk 0:01:44.9]} 17. Bc3 {[%clk 0:01:51.6]} 17... f6 {[%clk 0:01:27.1]} 18.
Bxd4 {[%clk 0:01:52.5]} 18... Rxd4 {[%clk 0:01:24.6]} 19. Bf3 {[%clk 0:01:47.9]}
19... Bf5 {[%clk 0:01:08.8]} 20. Nc3 {[%clk 0:01:33.4]} 20... Rhd8 {[%clk
0:01:02.7]} 21. Rc1 {[%clk 0:01:19.1]} 21... Rd2 {[%clk 0:01:02.6]} 22. Be4
{[%clk 0:01:12.6]} 22... Bxe4 {[%clk 0:00:45.9]} 23. Nxe4 {[%clk 0:01:12.3]}
23... Rxa2 {[%clk 0:00:39.4]} 24. c5 {[%clk 0:01:12]} 24... Rd4 {[%clk
0:00:35.8]} 25. Nd6+ {[%clk 0:01:09.1]} 25... Kb8 {[%clk 0:00:21]} 26. Nc4
{[%clk 0:00:52.5]} 26... Rd5 {[%clk 0:00:19.4]} 27. b4 {[%clk 0:00:49.9]} 27...
Rd4 {[%clk 0:00:16.5]} 28. Ke1 {[%clk 0:00:46.2]} 28... Re4 {[%clk 0:00:10.9]}
29. Nd2 {[%clk 0:00:44.3]} 29... Rxb4 {[%clk 0:00:10.3]} 30. Nc4 {[%clk
0:00:38.6]} 30... Rxc4 {[%clk 0:00:08.6]} 31. Rc3 {[%clk 0:00:37.5]} 31... Rxc3
{[%clk 0:00:07.8]} 0-1

[Event "Early-Titled-Tuesday-Blitz-May-07-2024"]
[Site "Chess.com"]
[Date "2024.05.07"]
[Round "4"]
[White "secretsuperstar7"]
[Black "klifus"]
[Result "1/2-1/2"]
[WhiteElo "2472"]
[BlackElo "2224"]
[TimeControl "180+1"]
[EndTime "8:41:53 PDT"]
[Termination "Game drawn by repetition"]

1. c4 {[%clk 0:02:56.5]} 1... Nf6 {[%clk 0:02:59.5]} 2. Nc3 {[%clk 0:02:54.8]}
2... g6 {[%clk 0:02:59.6]} 3. g3 {[%clk 0:02:54.1]} 3... Bg7 {[%clk 0:02:59.3]}
4. Bg2 {[%clk 0:02:54.6]} 4... O-O {[%clk 0:02:58.9]} 5. Nf3 {[%clk 0:02:55]}
5... c5 {[%clk 0:02:57.3]} 6. O-O {[%clk 0:02:55]} 6... Nc6 {[%clk 0:02:54.9]}
7. d3 {[%clk 0:02:54.4]} 7... d6 {[%clk 0:02:53.3]} 8. a3 {[%clk 0:02:51.9]}
8... Rb8 {[%clk 0:02:44.7]} 9. Rb1 {[%clk 0:02:51.2]} 9... a6 {[%clk 0:02:40.3]}
10. Ne1 {[%clk 0:02:43.8]} 10... Bd7 {[%clk 0:02:36.4]} 11. b4 {[%clk
0:02:40.5]} 11... cxb4 {[%clk 0:02:35.5]} 12. axb4 {[%clk 0:02:40.9]} 12... b5
{[%clk 0:02:35.4]} 13. cxb5 {[%clk 0:02:38.9]} 13... axb5 {[%clk 0:02:34.4]} 14.
Nc2 {[%clk 0:02:37.3]} 14... Qc8 {[%clk 0:02:27]} 15. Bg5 {[%clk 0:02:30]} 15...
Bh3 {[%clk 0:02:25.3]} 16. Bxf6 {[%clk 0:02:24.6]} 16... Bxf6 {[%clk 0:02:19.9]}
17. Nd5 {[%clk 0:02:22.8]} 17... Bxg2 {[%clk 0:02:16.4]} 18. Nxf6+ {[%clk
0:02:20.2]} 18... exf6 {[%clk 0:02:14.6]} 19. Kxg2 {[%clk 0:02:20.5]} 19... Re8
{[%clk 0:02:08.2]} 20. d4 {[%clk 0:02:14.5]} 20... d5 {[%clk 0:02:03.9]} 21. Ne3
{[%clk 0:02:12.1]} 21... Qe6 {[%clk 0:02:00.3]} 22. Qd3 {[%clk 0:02:07.9]} 22...
f5 {[%clk 0:01:58]} 23. Rfc1 {[%clk 0:02:05.8]} 23... Rec8 {[%clk 0:01:53.7]}
24. Rc5 {[%clk 0:02:05.1]} 24... Ne7 {[%clk 0:01:32.2]} 25. Rbc1 {[%clk
0:01:59.9]} 25... Rxc5 {[%clk 0:01:29.4]} 26. dxc5 {[%clk 0:01:50.3]} 26... Qe4+
{[%clk 0:01:19.6]} 27. Qxe4 {[%clk 0:01:48.8]} 27... dxe4 {[%clk 0:01:11.6]} 28.
Rd1 {[%clk 0:01:47.8]} 28... Nc6 {[%clk 0:01:09.7]} 29. Nd5 {[%clk 0:01:14.5]}
29... Kg7 {[%clk 0:01:02.7]} 30. Ra1 {[%clk 0:00:53.9]} 30... Rd8 {[%clk
0:01:00.1]} 31. Ra6 {[%clk 0:00:53.7]} 31... Rxd5 {[%clk 0:00:55.7]} 32. Rxc6
{[%clk 0:00:53.5]} 32... Rd4 {[%clk 0:00:55.3]} 33. Rb6 {[%clk 0:00:45.4]} 33...
Rxb4 {[%clk 0:00:54.6]} 34. c6 {[%clk 0:00:42.4]} 34... Rc4 {[%clk 0:00:54.5]}
35. Rxb5 {[%clk 0:00:30.2]} 35... Rxc6 {[%clk 0:00:53.2]} 36. h4 {[%clk
0:00:26.6]} 36... h5 {[%clk 0:00:53]} 37. Ra5 {[%clk 0:00:25.8]} 37... Rd6
{[%clk 0:00:52.7]} 38. Rb5 {[%clk 0:00:25.7]} 38... Rc6 {[%clk 0:00:52.5]} 39.
e3 {[%clk 0:00:25.2]} 39... Rc2 {[%clk 0:00:51.7]} 40. Ra5 {[%clk 0:00:23.9]}
40... Rd2 {[%clk 0:00:51.5]} 41. Rb5 {[%clk 0:00:23]} 41... Rc2 {[%clk
0:00:51.1]} 42. Ra5 {[%clk 0:00:23.1]} 42... Rd2 {[%clk 0:00:51]} 43. Rb5 {[%clk
0:00:23.5]} 43... Rc2 {[%clk 0:00:51.1]} 1/2-1/2

[Event "Early-Titled-Tuesday-Blitz-May-07-2024"]
[Site "Chess.com"]
[Date "2024.05.07"]
[Round "4"]
[White "MasterKroket"]
[Black "DenisQ"]
[Result "0-1"]
[WhiteElo "2510"]
[BlackElo "2710"]
[TimeControl "180+1"]
[EndTime "8:41:54 PDT"]
[Termination "DenisQ won by resignation"]

1. e4 {[%clk 0:02:58]} 1... c6 {[%clk 0:02:59.4]} 2. d4 {[%clk 0:02:57.6]} 2...
d5 {[%clk 0:03:00.1]} 3. e5 {[%clk 0:02:56.1]} 3... c5 {[%clk 0:02:59.4]} 4.
dxc5 {[%clk 0:02:55.8]} 4... Nc6 {[%clk 0:02:58.8]} 5. f4 {[%clk 0:02:50.9]}
5... e6 {[%clk 0:02:56.8]} 6. Nf3 {[%clk 0:02:35.9]} 6... Bxc5 {[%clk
0:02:55.9]} 7. Bb5 {[%clk 0:02:26.3]} 7... Ne7 {[%clk 0:02:47.5]} 8. Qe2 {[%clk
0:02:16.3]} 8... O-O {[%clk 0:02:45.9]} 9. c3 {[%clk 0:02:10.6]} 9... Bd7 {[%clk
0:02:39.5]} 10. Bd3 {[%clk 0:02:06.9]} 10... f6 {[%clk 0:02:22.4]} 11. exf6
{[%clk 0:02:01.8]} 11... Rxf6 {[%clk 0:02:21.6]} 12. b4 {[%clk 0:01:59]} 12...
Bb6 {[%clk 0:02:05.8]} 13. a4 {[%clk 0:01:58.2]} 13... a6 {[%clk 0:02:02.5]} 14.
a5 {[%clk 0:01:45.2]} 14... Bc7 {[%clk 0:01:44.5]} 15. O-O {[%clk 0:01:34.9]}
15... Qf8 {[%clk 0:01:21]} 16. Ng5 {[%clk 0:01:15.1]} 16... g6 {[%clk
0:01:19.1]} 17. Na3 {[%clk 0:00:58.9]} 17... e5 {[%clk 0:01:12.6]} 18. fxe5
{[%clk 0:00:51.7]} 18... Nxe5 {[%clk 0:01:08.6]} 19. Bd2 {[%clk 0:00:40.4]}
19... Bg4 {[%clk 0:00:52.2]} 20. Qe3 {[%clk 0:00:40.3]} 20... Nf5 {[%clk
0:00:49.4]} 21. Bxf5 {[%clk 0:00:39.2]} 21... Bxf5 {[%clk 0:00:48.3]} 22. Nf3
{[%clk 0:00:20.2]} 22... Re8 {[%clk 0:00:41.3]} 23. Qa7 {[%clk 0:00:19.6]} 23...
Bd3 {[%clk 0:00:33.1]} 24. Rf2 {[%clk 0:00:13.1]} 24... Nxf3+ {[%clk 0:00:31.9]}
25. gxf3 {[%clk 0:00:13.7]} 25... Rxf3 {[%clk 0:00:30.6]} 26. Qc5 {[%clk
0:00:07.3]} 26... Rxf2 {[%clk 0:00:28.8]} 27. Qxf2 {[%clk 0:00:06.8]} 27...
Qxf2+ {[%clk 0:00:28.6]} 28. Kxf2 {[%clk 0:00:07.7]} 28... Re2+ {[%clk
0:00:28.3]} 0-1